Cogmind - Beta 13 @@@ ROGUE MODE // 2024.04.13 @ 19:12:12 Player: Olafz Result: Destroyed by S-10 Pest with Light Assault Rifle Performance ------------- Evolutions (1) 500 Regions Visited (2) 400 Robots Destroyed (21) 105 Value Destroyed (530) 530 Prototype IDs (5) 100 Alien Tech Used (0) 0 Bonus (0) 0 TOTAL SCORE: 1635 Bonus ------- None Cogmind --------- Core Integrity 0/400 Matter 250/300 Energy 22/100 System Corruption 0% Temperature Cool (2) Movement Walking (120) Location -9/Materials Parts ------- > --- POWER (1) -------- (None) > --- PROPULSION (2) --- Aluminum Leg Aluminum Leg > --- UTILITY (4) ------ (None) > --- WEAPON (2) ------- Medium Laser Medium Laser > --- INVENTORY (5) ---- Light Ion Engine Light Ion Engine Small Storage Unit Peak State ------------ > --- POWER ------------ Ion Engine > --- PROPULSION ------- Aluminum Leg Aluminum Leg > --- UTILITY ---------- Small Storage Unit Large Storage Unit > --- WEAPON ----------- Medium Laser Light Assault Rifle > --- INVENTORY -------- Light Ion Engine Light Treads Light Treads Aluminum Leg Wheel Wheel Assault Rifle [Rating: 7] Favorites ----------- Power Ion Engine Engine Ion Engine Propulsion Light Treads Treads Light Treads Leg Aluminum Leg Utility High-capacity Storage Unit Storage High-capacity Storage Unit Weapon Medium Laser Energy Gun Medium Laser Ballistic Gun Light Assault Rifle Build | -11 -10 -9 ------- Run | Yrd Mat Mat Slots Evolved 2 | . . 2 Power . | . . . Propulsion . | . . . Utility 2 | . . 2 Weapon . | . . . Parts Attached 25 | . 17 8 Power 5 | . 4 1 Engine 5 | . 4 1 Core . | . . . Reactor . | . . . Propulsion 10 | . 7 3 Treads 6 | . 6 . Leg 4 | . 1 3 Wheel . | . . . Hover . | . . . Flight . | . . . Utility 2 | . 2 . Device . | . . . Storage 2 | . 2 . Processor . | . . . Hackware . | . . . Protection . | . . . Artifact . | . . . Weapon 8 | . 4 4 Energy Gun 6 | . 2 4 Energy Cannon . | . . . Ballistic Gun 2 | . 2 . Ballistic Cannon . | . . . Launcher . | . . . Special Weapon . | . . . Impact Weapon . | . . . Slashing Weapon . | . . . Piercing Weapon . | . . . Special Melee Weapon . | . . . Unidentified Prototypes . | . . . Parts Lost 13 | . 5 8 Power 3 | . 1 2 Propulsion 4 | . 2 2 Utility . | . . . Weapon 6 | . 2 4 Highest Loss Streak 5 | . 2 5 To Critical Strikes . | . . . Average Slot Usage (%) 71 | . 78 53 Engine 11 | . 12 9 Treads 12 | . 12 11 Leg 9 | . 12 1 Storage 16 | . 18 10 Energy Gun 15 | . 14 20 Ballistic Gun 4 | . 6 . Naked Turns 2 | . . 2 Heaviest Build 49 | 12 49 49 Greatest Support 40 | 20 40 40 Greatest Overweight (x) 16 | . 13 16 Average Overweight (x) . | . . 1 Largest Inventory Capacity 20 | . 20 20 Average Capacity 16 | . 16 18 Most Carried 14 | . 14 9 Average Carried 8 | . 8 7 Final Capacity 20 | 8 20 5 Final Carried 9 | 6 9 3 Class Distribution -------------------- 100% | Mutant Dominant Class ---------------- Mutant | -10/Materials Mutant | -9/Materials Resources | -11 -10 -9 ----------- Run | Yrd Mat Mat Matter Collected 426 | 200 91 135 Remotely . | . . . Salvage Created 866 | . 351 515 Parts 45 | . 20 25 Haulers Intercepted 1 | . 1 . Recyclers Shooed 2 | . . 2 Parts Field Recycled . | . . . Retrieved Matter . | . . . Parts Self-Destructed . | . . . Prevented . | . . . Kills | -11 -10 -9 ------- Run | Yrd Mat Mat Combat Hostiles Destroyed 15 | . 9 6 Guns 13 | . 7 6 AOE 2 | . 2 . Classes Destroyed 9 | . 3 6 Worker 1 | . . 1 Hauler 1 | . 1 . Recycler 2 | . . 2 Mechanic 1 | . . 1 Watcher 1 | . . 1 Swarmer 3 | . 3 . Grunt 9 | . 6 3 Duelist 1 | . . 1 Sentry 2 | . . 2 Best Kill Streak 7 | . 3 7 Combat Bots Only 4 | . 3 4 Max Kills in Single Turn 2 | . 2 1 Gunslinging . | . . . Exploded 2 | . 2 . Melee . | . . . Uniques/NPCs Destroyed . | . . . Combat | -11 -10 -9 -------- Run | Yrd Mat Mat Hostile Shots Fired 201 | . 99 102 Missed 54 | . 30 24 Damage Taken 1806 | . 790 1016 Core 557 | . 153 404 Absorbed by Shields . | . . . Core Remaining (%) 69 | 100 38 . Volleys Fired 81 | . 45 36 Largest 2 | . 2 2 Hottest 100 | . 100 100 Shots Fired 141 | . 69 72 Gun 141 | . 69 72 Cannon . | . . . Launcher . | . . . Special . | . . . Kinetic 36 | . 36 . Thermal 102 | . 30 72 Explosive . | . . . Electromagnetic 3 | . 3 . Robot Hit Streak 7 | . 7 7 Robot Miss Streak 6 | . 6 4 Penetration Max . | . . . Secondary Targets 4 | . 3 1 Max Gunslinging Chain 1 | . 1 1 Shots Hit Robots 88 | . 41 47 Core Hits 38 | . 17 21 Critical Kills . | . . . Critical Parts Destroyed . | . . . Critical Strikes 6 | . 2 4 Burn 5 | . 1 4 Corrupt 1 | . 1 . Melee Attacks . | . . . Impact . | . . . Slashing . | . . . Piercing . | . . . Sneak Attacks . | . . . Combat Hostiles . | . . . Follow-up Attacks . | . . . Damage Inflicted 1172 | . 562 610 Guns 1071 | . 461 610 Cannons . | . . . Explosions 101 | . 101 . Melee . | . . . Ramming . | . . . Kinetic 155 | . 155 . Thermal 974 | . 364 610 Explosive . | . . . Electromagnetic 43 | . 43 . Impact . | . . . Slashing . | . . . Piercing . | . . . Highest Corruption 4 | . 4 . Average Corruption 1 | . 1 . Corruption Purged . | . . . Corruption Blocked . | . . . Effects 3 | . 3 . Message Errors 1 | . 1 . Heat Flow Errors 2 | . 2 . Overload Shots . | . . . Overflow Damage . | . . . Projectiles . | . . . Explosions . | . . . Melee . | . . . Knockbacks . | . . . Impact . | . . . Kinetic . | . . . Secondary . | . . . Self-Inflicted Damage 40 | . 40 . Shots 1 | . 1 . Rammed . | . . . Targets Rammed . | . . . Kicked . | . . . Crushed . | . . . Highest Temperature 513 | . 288 513 Average Temperature 178 | . 132 217 Received Heat Transfer 459 | . 189 270 Effects 9 | . . 9 Shutdowns 2 | . . 2 Energy Bleed 1 | . . 1 Short Circuit 1 | . . 1 Damage (minor) 1 | . . 1 Damage (major) 4 | . . 4 Siege Activations . | . . . Robots Corrupted . | . . . Combat Hostiles . | . . . Parts Fried . | . . . Impact Corruptions . | . . . Robots Melted . | . . . Combat Hostiles . | . . . Parts Melted 13 | . 1 12 Heat Transferred 3110 | . 1001 2109 Parts Sabotaged . | . . . Parts Stolen . | . . . Parts Stripped . | . . . Power Chain Reactions 1 | . 1 . Alert | -11 -10 -9 ------- Run | Yrd Mat Mat Peak Influence 158 | . 158 152 Initial 26 | . . 26 Average 57 | . 51 74 Maximum Alert Level . | . . . Low Security (%) 100 | . 100 100 Level 1 . | . . . Level 2 . | . . . Level 3 . | . . . Level 4 . | . . . Level 5 . | . . . High Security . | . . . Max Security . | . . . Squads Dispatched 3 | . 2 1 Investigation 3 | . 2 1 Extermination . | . . . Reinforcement . | . . . Assault . | . . . Garrison . | . . . Intercept . | . . . Searches Triggered . | . . . Construction Impeded . | . . . Haulers Reinforced . | . . . Active Scanning Responses . | . . . Cargo Convoy Interrupts . | . . . Stealth | -11 -10 -9 --------- Run | Yrd Mat Mat Distress Signals 1 | . . 1 Communications Jammed . | . . . Distress Signals . | . . . Times Spotted 26 | . 13 13 Peak Tracking Total 5 | . 5 4 Tactical Retreats 1 | . . 1 Traps | -11 -10 -9 ------- Run | Yrd Mat Mat Traps Triggered 6 | . 6 . Indirectly . | . . . Trap Hack Attempts . | . . . Triggered . | . . . Disarmed . | . . . Reprogrammed . | . . . Reused . | . . . Traps Extracted . | . . . Installed . | . . . Triggered . | . . . Machines | -11 -10 -9 ---------- Run | Yrd Mat Mat Machines Disabled . | . . . Max in Single Turn . | . . . Machines Repaired . | . . . Machines Dismantled . | . . . Machines Sabotaged . | . . . Overloaded Fab Kills . | . . . Hacking | -11 -10 -9 --------- Run | Yrd Mat Mat Machines Accessed 7 | . 6 1 Terminals 6 | . 5 1 Fabricators . | . . . Repair Stations . | . . . Recycling Units 1 | . 1 . Scanalyzers . | . . . Garrison Access . | . . . Total Hacks 28 | . 25 3 Successful 11 | . 9 2 Failed 17 | . 16 1 Catastrophic 6 | . 6 . Database Lockouts . | . . . Manual 13 | . 12 1 Terminals 26 | . 23 3 Fabricators . | . . . Repair Stations . | . . . Recycling Units 2 | . 2 . Scanalyzers . | . . . Garrison Access . | . . . Terminal Hacks 4 | . 3 1 Prototype ID Bank 3 | . 3 . Unreport Threat 1 | . . 1 Fabricator Hacks . | . . . Repair Station Hacks . | . . . Recycling Unit Hacks 2 | . 2 . Retrieve Components 2 | . 2 . Scanalyzer . | . . . Garrison Access Hacks . | . . . Unauthorized Hacks 5 | . 4 1 Terminals 5 | . 4 1 Botnet 5 | . 4 1 Fabricators . | . . . Repair Stations . | . . . Recycling Units . | . . . Scanalyzers . | . . . Garrison Access . | . . . Data Cores Recovered . | . . . Used . | . . . Hacking Detections 5 | . 4 1 Full Trace Events 5 | . 4 1 Feedback Events 1 | . 1 . Corruption 1 | . 1 . Feedback Blocked . | . . . Robot Schematics Acquired . | . . . Robots Built . | . . . Authchips . | . . . Time . | . . . Total Robot Build Rating . | . . . Part Schematics Acquired . | . . . Parts Built . | . . . Authchips . | . . . Time . | . . . Total Part Build Rating . | . . . Parts Repaired . | . . . Time . | . . . Parts Recycled . | . . . Recycled Matter . | . . . Retrieved Matter . | . . . Retrieved Components . | . . . Parts Scanalyzed . | . . . Part Schematics Acquired . | . . . Parts Damaged . | . . . Bothacking | -11 -10 -9 ------------ Run | Yrd Mat Mat Used RIF Installer . | . . . Robots Hacked . | . . . Non-combat . | . . . Combat . | . . . Robot Hacks Applied . | . . . Relay Couplers Released . | . . . Fabnet Peak Effective % . | . . . Robots Rewired . | . . . Allies Hacked . | . . . Hacks Repelled . | . . . Allies | -11 -10 -9 -------- Run | Yrd Mat Mat Total Allies . | . . . Largest Group . | . . . Highest-Rated Group . | . . . Highest-Rated Ally . | . . . Total Orders . | . . . Ally Attacks . | . . . Total Damage . | . . . Kills . | . . . Allies Corrupted . | . . . Allies Melted . | . . . Intel | -11 -10 -9 ------- Run | Yrd Mat Mat Robot Analysis Total . | . . . Derelict Logs Recovered . | . . . Drone Launches . | . . . Drone Recoveries . | . . . Exploration | -11 -10 -9 ------------- Run | Yrd Mat Mat Turns Passed 916 | . 681 235 Spaces Moved 314 | 1 272 41 Core 7 | . 4 3 Treads 153 | . 122 31 Legs 154 | 1 146 7 Wheels . | . . . Hover . | . . . Flight . | . . . Fastest Speed 50 | 120 120 50 Average Speed 198 | 120 194 225 Slowest Speed 850 | 120 700 850 Overloaded Moves . | . . . Propulsion Burnouts . | . . . Robots Hopped . | . . . Cave-ins Triggered . | . . . Exploration Rate (%) 23 | 2 64 5 Regions Visited 2 Branch Regions . Pre-discovered Areas . | . . . Known Exits Taken . | . . . Unknown Exits Taken 2 | 1 1 . Scrap Searched . | . . . Spaces Dug . | . . . Terrain Destroyed 2 | . 2 . Melee . | . . . Projectile . | . . . AOE 2 | . 2 . Terrain Rammed . | . . . Walls Destroyed . | . . . Machines Disabled . | . . . Actions | -11 -10 -9 --------- Run | Yrd Mat Mat Total 472 | . 360 112 Wait 37 | . 12 25 Move 312 | . 271 41 Hop . | . . . Pick Up 6 | . 6 . Fast Attach 13 | . 11 2 Attach 7 | . 2 5 Detach 2 | . 2 . Swap 5 | . 4 1 Drop 9 | . 7 2 Fire 81 | . 45 36 Melee . | . . . Ram . | . . . Kick . | . . . Crush . | . . . Escape Stasis . | . . . Rewire . | . . . Trap . | . . . Miscellaneous . | . . . Route ------- -11/Scrapyard -10/Materials (discovered 2 exits: *Mat x2) -9/Materials History --------- Turn | Location | Event 1 | -11/Scrapyard | Discovered new exit (range 0) 1 | -11/Scrapyard | Entered Materials 161 | -10/Materials | Discovered new exit (range 8) 309 | -10/Materials | Core integrity fell below 50% 314 | -10/Materials | Build established: Mutant 443 | -10/Materials | Discovered new exit (range 16) 682 | -10/Materials | Entered another Materials area 682 | -9/Materials | Evolved 2 slots: Utility x2 827 | -9/Materials | Core integrity fell below 50% 856 | -9/Materials | Lost 5 parts (1p2n2w) 891 | -9/Materials | Core integrity fell below 20% 917 | -9/Materials | Destroyed by S-10 Pest with Light Assault Rifle Last Messages --------------- Ion Engine broken. Overheating: Short circuit. Overheating: Broken Ion Engine damaged (-1). Overheating: Med. Laser damaged (-9). Overheating: Hcp. Storage Unit damaged (-200). Overheating: Med. Laser damaged (-5). Overheating: Energy bleed (-19). R-06 Scavenger collects Wheel. K-01 Serf collects debris. K-01 Serf destroyed. Acquired 30 matter. Broken Ion Engine destroyed. Med. Laser destroyed. S-10 Pest destroyed. Dropped Hcp. Storage Unit. Acquired Aluminum Leg. Dropped Aluminum Leg. R-06 Scavenger collects Ion Engine. R-06 Scavenger collects Hvy. Assault Rifle. R-06 Scavenger collects Lgt. Treads. Map ----- +----------------------------------------------------+ | ?????????????????????????????????????????????????? | | ?????????????????????????????????????????????????? | | ?????????????????????????????????????????????????? | | ?????????????????????????????????????????????????? | | ?????????????????????????????????????????????????? | | ?????????????????????????????????????????????????? | | ?????????????????????????? ??????????????????????? | | ???????????????????????? ????????????????????? | | ???????????????????????? #???????????????????? | | ???????????????????????? #???????????????????? | | ???????????????????????? ????????????????????? | | ???????????????????????? ????????????????????? | | ???????????????????????? ?????????????????????? | | ???????????????????????? ?????????????????????? | | ???????????????????????? ??????????????????????? | | ???????????????????????? =*??????????????????????? | | ??????????????????????###+###?????#??????????????? | | ???????????????????#??# % ##### #### ????????? | | ???????????????????# ## ???????? | | ???????????????????# s ???????? | | ??????????????????????#==! ???????? | | ??????????????????????#[rs !#######??????????????? | | ??????????????????????## %##????????????????????? | | ???????????????????????#%!!#?????????????????????? | | ######################?#%[%#?????????????????????? | | # #?#=@!#?????????????????????? | | # ###=%!##????????????????????? | | ??? # """ ##!%=!!#????????????????????? | | ??????????# + """ ## !!! #????????????????????? | | ??????????# # """ + *T #????????????????????? | | ??????????# # ## #????????????????????? | | ??????????# ######### #????????????????????? | | ??????????#####???????### ###????????????????????? | | ????????????????????????# #??????????????????????? | | ????????????????????????# #??????????????????????? | | ????????????????????????# #??????????????????????? | | ????????????????????????# #??????????????????????? | | ????????????????????????# #??????????????????????? | | ????????????????????????? #??????????????????????? | | ????????????????????????? #??????????????????????? | | ?????????????????????????????????????????????????? | | ?????????????????????????????????????????????????? | | ?????????????????????????????????????????????????? | | ?????????????????????????????????????????????????? | | ?????????????????????????????????????????????????? | | | | | | | | | | | +----------------------------------------------------+ Best States ------------- Heat Dissipation 28 Energy Generation 10 Energy Capacity 250 Matter Stores 300 Matter Capacity 300 Sight Range 16 Terrain Scan Density 10 Evasion (%) 55 Recoil Reduction 2 Item Schematics ----------------- None Robot Schematics ------------------ None Fabricated ------------ Nothing Alien Tech Used ----------------- None Achievements -------------- None Challenges ------------ None Game ------ Seed GyrokineticMetafieldBeam Manual? 0 Play Time 00:09:58 Cumulative 53.3 hours Start 2024.04.13 @ 19:04:04 End 2024.04.13 @ 19:12:12 Sessions 1 Manual Loads 0 Difficulty Rogue Special Mode None Game No. 126 Rogue 124 Adventurer 2 Explorer 0 Win Type - Total 0 Types 0/0/0/0/0/0/0/0/0 Lore% 33 Gallery% 41 Achievement% 32 Wizard Run 0 Options --------- Layout 2 ASCII 0 Keyboard 1 Movement Numpad Keybinds 1 Fullscreen 2 Font 24/Smallcaps Map View 50x44 Zoom Use 0% Tactical HUD 1 Map Filters NONE Filters NONE Steam 1 RUN: 31a2aa67-ccb2-44ad-866d-9770c24dc633